bitfinex/quotes_SOLUSD_20260217
["timestamp","ask_amount","ask_price","bid_price","bid_amount"]
[1771311290945,0.49570099,86.714,86.7,3.25420952]
[1771311292350,11.53209446,86.715,86.701,0.45145127]
[1771311294065,11.53136531,86.72,86.701,0.45145127]
[1771311295764,0.49570099,86.72,86.701,0.45145127]
[1771311298171,12.02719927,86.719,86.701,0.45145127]
[1771311301270,0.49570099,86.718,86.701,0.45145127]
[1771311302472,0.49570099,86.716,86.701,0.45145127]
[1771311304072,11.53203021,86.715,86.701,0.45145127]
[1771311306375,0.49570099,86.714,86.7,3.25420952]
[1771311307876,0.49570099,86.713,86.694,0.45145127]
[1771311308063,0.49570099,86.713,86.7,3.25420952]
[1771311309965,0.49570099,86.713,86.7,3.25450761]
[1771311312581,0.49570099,86.711,86.686,7.9]
[1771311312776,0.49570099,86.711,86.687,7.9]
[1771311313470,0.49570099,86.711,86.69,3.25450761]
[1771311315366,0.4723811,86.709,86.69,3.25450761]
[1771311316572,0.4723811,86.707,86.69,3.25450761]
[1771311317864,0.4723811,86.705,86.69,3.25450761]
[1771311318781,0.4723811,86.705,86.683,7.9]
[1771311320780,11.53349326,86.704,86.69,3.25450761]
[1771311321085,0.4723811,86.703,86.69,3.25450761]
[1771311321894,0.4723811,86.701,86.69,3.25450761]
[1771311323290,0.4723811,86.699,86.69,3.25450761]
[1771311327999,0.4723811,86.697,86.69,3.25450761]
[1771311332592,0.4723811,86.695,86.68,3.25450761]
[1771311337406,0.4723811,86.693,86.668,0.48313259]
[1771311337602,0.4723811,86.693,86.667,7.9]
[1771311339084,0.4723811,86.693,86.67,3.45450761]
[1771311340508,0.4723811,86.698,86.68,3.25450761]
[1771311340693,0.4723811,86.698,86.68,3.7376402]
[1771311340889,0.4723811,86.697,86.69,3.25450761]
[1771311342407,0.4723811,86.697,86.681,0.48313259]
[1771311344107,19.3,86.713,86.68,3.25450761]
[1771311344108,0.47324974,86.695,86.68,3.25450761]
[1771311344314,0.47324974,86.695,86.67,3.45450761]
[1771311345222,11.53482363,86.694,86.67,3.45450761]
[1771311345414,0.47324974,86.693,86.67,3.45450761]
[1771311345598,0.47324974,86.693,86.67,3.92891074]
[1771311345912,0.47324974,86.693,86.671,0.47440313]
[1771311346705,0.47324974,86.693,86.67,3.45450761]
[1771311348810,0.47324974,86.691,86.68,3.25450761]
[1771311350497,0.49464102,86.689,86.68,3.25450761]
[1771311353304,48.13536153,86.7,86.68,3.25450761]
[1771311354520,11.53415841,86.699,86.68,3.25450761]
[1771311355534,0.49464102,86.696,86.68,3.25450761]
[1771311357433,11.53469058,86.695,86.68,3.25450761]
[1771311357626,0.49464102,86.694,86.68,3.25450761]
[1771311359221,30.82903841,86.695,86.68,3.25450761]
[1771311360737,30.82903841,86.695,86.68,3.72927289]
[1771311361033,30.82903841,86.695,86.681,0.47476528]
[1771311362136,31.32367943,86.695,86.681,0.47476528]
[1771311362336,0.49464102,86.694,86.68,3.25450761]
[1771311363335,11.53495668,86.693,86.68,3.25450761]
[1771311365628,11.53495668,86.693,86.681,0.47476528]
[1771311371843,17.64137012,86.695,86.681,0.47476528]
[1771311372041,28.82984435,86.716,86.68,3.25535539]
[1771311372042,19.4,86.705,86.68,3.25535539]
[1771311372344,0.5036434,86.704,86.69,3.25535539]
[1771311373535,0.5036434,86.702,86.69,3.25535539]
[1771311378261,11.53389234,86.701,86.69,3.25535539]
[1771311378454,0.5036434,86.7,86.68,3.25535539]
[1771311381859,0.5036434,86.704,86.69,3.25535539]
[1771311382058,0.5036434,86.703,86.69,3.25535539]
[1771311383239,0.5036434,86.703,86.68,3.25535539]
[1771311383738,0.5036434,86.703,86.681,0.02042466]
[1771311387977,0.5036434,86.701,86.68,3.25535539]
[1771311388143,0.5036434,86.701,86.676,7.9]
[1771311389550,11.53402537,86.7,86.676,7.9]
[1771311389751,0.5036434,86.699,86.676,7.9]
[1771311390154,0.5036434,86.699,86.674,0.02750001]
[1771311392473,0.5036434,86.697,86.674,0.02750001]
[1771311393375,0.5036434,86.697,86.68,3.25535539]
[1771311393551,0.5036434,86.697,86.674,0.02750001]
[1771311394374,0.5036434,86.695,86.68,3.25535539]
[1771311401774,0.5036434,86.695,86.674,0.02750001]
[1771311403579,0.5036434,86.695,86.67,3.45535539]
[1771311404077,0.5036434,86.695,86.671,0.04640675]
[1771311418080,0.5036434,86.695,86.67,0.2]
[1771311418287,0.50897316,86.693,86.671,0.06332272]
[1771311418475,0.50897316,86.693,86.67,3.45535539]
[1771311418476,0.50897316,86.693,86.68,3.25535539]
[1771311421081,0.50897316,86.693,86.68,3.32150841]
[1771311421266,0.50897316,86.693,86.681,0.06615302]
[1771311421467,11.53372601,86.703,86.681,0.06615302]
[1771311422787,11.53242919,86.712,86.681,0.06615302]
[1771311423370,0.50897316,86.711,86.681,0.06615302]
[1771311424587,0.50897316,86.711,86.69,3.25535539]
[1771311425378,0.50897316,86.711,86.691,0.48742542]
[1771311425985,0.50897316,86.711,86.7,3.25535539]
[1771311426180,0.50897316,86.711,86.691,0.48742542]
[1771311428093,0.50897316,86.71,86.691,0.48742542]
[1771311434883,0.50897316,86.71,86.69,3.25575328]
[1771311435087,11.53282819,86.709,86.675,11.53735217]
[1771311435309,0.4974804,86.708,86.676,0.53200936]
[1771311437203,0.49585594,86.706,86.68,3.78776264]
[1771311438597,11.53336024,86.705,86.681,0.53200936]
[1771311438787,0.49505768,86.704,86.681,0.53200936]
[1771311440493,0.49348855,86.702,86.681,0.53200936]
[1771311441708,3.25575328,86.68,86.616,0.53318341]
[1771311441896,4.61729252,86.697,86.64,3.45575328]
[1771311442096,23.7435839,86.68,86.641,0.53318341]
[1771311442415,19.48,86.679,86.641,0.53318341]
[1771311443013,11.53695286,86.678,86.641,0.53318341]
[1771311443717,3.25575328,86.67,86.64,0.2]
[1771311443918,11.53815089,86.669,86.64,0.2]
[1771311444214,3.25575328,86.66,86.64,0.2]
[1771311445299,3.25575328,86.65,86.63,0.2]
[1771311445600,3.25575328,86.64,86.63,0.2]
[1771311446522,3.25575328,86.65,86.63,0.2]
[1771311446706,3.25575328,86.64,86.63,0.2]
[1771311448221,3.25575328,86.64,86.621,11.54451479]
[1771311448600,3.25575328,86.64,86.621,12.0776982]
[1771311449520,3.25575328,86.64,86.621,11.54451479]
[1771311449729,3.25575328,86.63,86.621,11.54451479]
[1771311450923,3.25575328,86.63,86.62,0.2]
[1771311455803,0.02137362,86.629,86.597,0.53318341]
[1771311456001,11.54272082,86.635,86.6,0.73318341]
[1771311456002,0.02137362,86.619,86.6,0.73318341]
[1771311456204,3.25575328,86.62,86.601,0.53318341]
[1771311456698,0.02137362,86.624,86.601,0.53318341]
[1771311456906,0.02137362,86.629,86.601,0.53318341]
[1771311457511,0.02137362,86.629,86.605,0.53318341]
[1771311457711,0.02137362,86.629,86.606,11.54654411]
[1771311457912,3.25575328,86.62,86.607,0.53318341]
[1771311460318,0.02137362,86.629,86.608,11.54627748]
[1771311460616,0.02137362,86.629,86.609,0.53318341]
[1771311462827,0.02137362,86.629,86.6,0.2]
[1771311462828,0.03510599,86.619,86.6,0.2]
[1771311463130,0.03510599,86.619,86.601,0.53318341]
[1771311463330,3.25575328,86.62,86.601,0.53318341]
[1771311469934,0.52415488,86.652,86.603,0.55216918]
[1771311470126,3.77990816,86.65,86.603,0.55216918]
[1771311470435,0.52415488,86.649,86.611,0.52420337]
[1771311471123,0.52415488,86.647,86.621,0.52420337]
[1771311472051,11.54039549,86.653,86.631,0.52420337]
[1771311472221,0.52415488,86.666,86.631,0.52420337]
[1771311473261,0.52415488,86.664,86.632,0.52420337]
[1771311474139,0.52415488,86.659,86.632,0.52420337]
[1771311479533,3.25575328,86.66,86.632,0.52420337]
[1771311479534,0.52415488,86.657,86.632,0.52420337]
[1771311479842,12.06403671,86.656,86.632,0.52420337]
[1771311480043,0.52415488,86.655,86.632,0.52420337]
[1771311483050,11.54014817,86.654,86.632,0.52420337]
[1771311483251,0.52415488,86.649,86.621,0.52420337]
[1771311483546,0.52415488,86.629,86.609,12.07031757]
[1771311483751,0.52415488,86.629,86.61,0.52420337]
[1771311483952,3.25575328,86.63,86.61,0.52420337]
[1771311484951,0.52415488,86.639,86.612,0.52420337]
[1771311491265,0.52415488,86.663,86.614,0.52420337]
[1771311491447,3.25575328,86.65,86.621,0.52420337]
[1771311492458,11.54081408,86.649,86.621,0.52420337]
[1771311498878,19.44,86.665,86.616,7.9]
[1771311498879,11.53983227,86.657,86.623,0.57990898]
[1771311500955,11.53983227,86.657,86.625,0.57990898]
[1771311501477,3.26132878,86.65,86.625,0.57990898]
[1771311501855,0.57146336,86.649,86.625,0.57990898]
[1771311502557,0.57146336,86.656,86.625,0.57990898]
[1771311503382,0.57146336,86.654,86.625,0.57990898]
[1771311505080,12.11174471,86.653,86.625,0.57990898]
[1771311505378,0.57146336,86.652,86.625,0.57990898]
[1771311508669,0.57146336,86.65,86.625,0.57990898]
[1771311510282,0.57146336,86.648,86.625,0.57990898]
[1771311516386,0.57146336,86.654,86.625,0.57990898]
[1771311519371,11.54028135,86.653,86.625,0.57990898]
[1771311519581,0.57146336,86.652,86.625,0.57990898]
[1771311521404,11.54054771,86.651,86.625,0.57990898]
[1771311522590,0.57146336,86.651,86.625,0.57990898]
[1771311523589,12.11214426,86.65,86.625,0.57990898]
[1771311529596,11.53962854,86.658,86.627,0.55406851]
[1771311529785,0.596745,86.664,86.627,0.55406851]
[1771311530492,0.596745,86.662,86.627,0.55406851]
[1771311533500,0.596745,86.66,86.631,0.55406851]
[1771311535384,12.13622733,86.659,86.631,0.55406851]
[1771311535590,0.596745,86.658,86.631,0.55406851]
[1771311542986,0.596745,86.663,86.633,0.55406851]
[1771311543181,0.596745,86.663,86.632,11.54307876]
[1771311543182,12.13520919,86.667,86.635,0.55406851]
[1771311543393,12.13400017,86.676,86.651,0.55406851]
[1771311543592,0.596745,86.675,86.651,0.55406851]
[1771311543807,11.53725517,86.676,86.651,0.55406851]
[1771311544009,0.596745,86.697,86.651,0.55406851]
[1771311544196,0.596745,86.696,86.661,0.55406851]
[1771311545298,0.596745,86.689,86.661,0.55406851]
[1771311546708,0.596745,86.687,86.661,0.55406851]
[1771311548708,0.596745,86.685,86.661,0.55406851]
[1771311550409,11.53467944,86.696,86.671,0.55406851]
[1771311552618,0.596745,86.698,86.671,0.55406851]
[1771311555495,11.53442448,86.697,86.671,0.55406851]
[1771311555824,11.53372331,86.703,86.681,0.6228807]
[1771311556200,12.13245964,86.703,86.681,0.6228807]
[1771311557421,0.59873633,86.702,86.681,0.6228807]
[1771311558496,0.59873633,86.7,86.681,0.6228807]
[1771311566716,0.59873633,86.699,86.674,7.9]
[1771311566923,40.36489867,86.709,86.6,3.45644355]
[1771311566924,3.25644355,86.68,86.64,3.25644355]
[1771311567422,3.25644355,86.67,86.633,1.6]
[1771311568719,3.25644355,86.67,86.636,0.6228807]
[1771311570212,3.25644355,86.67,86.638,0.6228807]
[1771311570410,3.25644355,86.68,86.641,0.6228807]
[1771311571540,11.53681976,86.679,86.642,11.54174649]
[1771311571741,11.53681976,86.679,86.643,0.6228807]
[1771311573727,11.53681976,86.679,86.645,0.6228807]
[1771311573916,11.53681976,86.679,86.646,1.6]
[1771311574116,11.53681976,86.679,86.647,0.6228807]
[1771311584442,11.53681976,86.679,86.648,0.61595392]
[1771311590431,0.60172457,86.659,86.6,0.2]
[1771311590635,3.25644355,86.61,86.59,0.2]
[1771311590943,16.98611903,86.658,86.592,0.5606638]
[1771311591144,19.95636852,86.784,86.592,0.5606638]
[1771311591145,3.25644355,86.63,86.592,0.5606638]
[1771311591648,0.44659656,86.618,86.592,0.5606638]
[1771311592632,0.44659656,86.618,86.594,0.5606638]
[1771311595449,3.25644355,86.61,86.59,0.2]
[1771311595638,0.17652627,86.609,86.59,0.2]
[1771311597559,3.25644355,86.6,86.59,0.2]
[1771311597745,0.17652627,86.609,86.59,0.7606638]
[1771311597947,0.17652627,86.609,86.591,0.5606638]
[1771311598656,0.44659656,86.599,86.591,0.5606638]
[1771311600142,0.44659656,86.599,86.59,0.2]
[1771311600340,0.1807459,86.598,86.58,0.2]
[1771311600650,0.1807459,86.589,86.561,0.5606638]
[1771311600872,3.25644355,86.57,86.554,0.5606638]
[1771311601255,11.5490778,86.587,86.554,11.55337352]
[1771311601458,11.5490778,86.587,86.555,0.5606638]
[1771311602062,1.75,86.588,86.555,0.5606638]
[1771311602247,13.29899294,86.588,86.555,0.5606638]
[1771311602852,3.25644355,86.58,86.555,0.5606638]
[1771311603050,3.43960871,86.57,86.541,0.5606638]
[1771311603250,3.25644355,86.56,86.541,0.5606638]
[1771311603658,3.25644355,86.56,86.541,12.1158804]
[1771311603863,3.25644355,86.56,86.542,0.5606638]
[1771311604061,3.25644355,86.57,86.542,0.5606638]
[1771311604248,3.25644355,86.58,86.542,0.5606638]
[1771311604453,1.75,86.588,86.561,0.5606638]
[1771311604649,3.25644355,86.6,86.561,0.5606638]
[1771311604861,0.60172457,86.607,86.561,0.5606638]
[1771311605053,0.60172457,86.605,86.563,0.5606638]
[1771311605250,3.25644355,86.6,86.563,0.5606638]
[1771311605763,0.60172457,86.605,86.563,0.5606638]
[1771311607267,3.25644355,86.61,86.565,0.5606638]
[1771311607268,0.60172457,86.603,86.565,0.5606638]
[1771311607763,0.60172457,86.599,86.565,0.5606638]
[1771311608457,3.25644355,86.59,86.565,0.5606638]
[1771311608652,0.60172457,86.589,86.565,0.5606638]
[1771311610146,0.60172457,86.587,86.565,0.5606638]
[1771311614672,0.60172457,86.587,86.567,0.5667845]
[1771311615057,0.62107868,86.592,86.567,0.5667845]
[1771311617070,0.62107868,86.591,86.567,0.5667845]
[1771311623079,0.62107868,86.589,86.562,0.5667845]
[1771311623878,0.62107868,86.589,86.564,0.5667845]
[1771311625182,0.62107868,86.614,86.566,0.5667845]
[1771311625478,46.15259596,86.67,86.591,0.5667845]
[1771311625479,0.62107868,86.626,86.591,0.5667845]
[1771311625671,3.26538836,86.61,86.571,0.5667845]
[1771311625874,0.62107868,86.609,86.571,0.5667845]
[1771311626884,0.62107868,86.607,86.573,0.5667845]
[1771311629265,0.62107868,86.605,86.573,0.5667845]
[1771311629667,0.62107868,86.605,86.574,11.55081202]
[1771311629867,0.62107868,86.605,86.575,0.5667845]
[1771311632289,11.54681077,86.604,86.581,0.5667845]
[1771311632588,12.16788945,86.604,86.581,0.5667845]
[1771311632789,0.62107868,86.603,86.581,0.5667845]
[1771311636184,0.62107868,86.609,86.583,0.5667845]
[1771311641283,0.62107868,86.609,86.582,11.54974475]
[1771311641284,0.62107868,86.629,86.585,0.5667845]
[1771311641901,0.62107868,86.629,86.591,0.5667845]
[1771311645605,11.54361176,86.628,86.591,0.5667845]
[1771311645922,0.57651557,86.627,86.593,0.56204692]
[1771311646801,0.57651557,86.625,86.593,0.56204692]
[1771311647304,0.57651557,86.609,86.579,0.56204692]
[1771311648286,0.57651557,86.609,86.58,11.55001155]
[1771311649093,0.57651557,86.599,86.574,0.56204692]
[1771311649285,0.57651557,86.589,86.558,0.56204692]
[1771311651405,0.56190811,86.599,86.561,0.56940261]
[1771311651605,0.56190811,86.598,86.561,0.56940261]
[1771311653806,0.56190811,86.596,86.561,0.56940261]
[1771311654190,0.56190811,86.579,86.555,0.56940261]
[1771311656387,0.56190811,86.579,86.55,11.55394362]
[1771311656388,0.56190811,86.579,86.55,0.56940261]
[1771311656593,0.56190811,86.569,86.549,17.28]
[1771311657114,0.56190811,86.569,86.544,0.56940261]
[1771311657696,0.56190811,86.569,86.543,11.5549064]
[1771311658323,0.56190811,86.559,86.54,0.2]
[1771311658694,3.26538836,86.55,86.54,0.2]
[1771311659096,3.82729647,86.55,86.54,0.2]
[1771311660198,0.56190811,86.549,86.53,0.2]
[1771311660609,0.56190811,86.549,86.52,0.2]
[1771311660610,0.56190811,86.539,86.52,0.2]
[1771311660922,0.38587464,86.529,86.501,0.56940261]
[1771311661099,3.26538836,86.52,86.501,0.56940261]
[1771311661297,0.38587464,86.529,86.501,12.1299626]
[1771311661494,3.26538836,86.54,86.502,0.56940261]
[1771311662022,0.38414151,86.539,86.502,0.56940261]
[1771311662224,0.38414151,86.539,86.503,11.5602927]
[1771311662403,0.38414151,86.539,86.504,0.56940261]
[1771311664210,0.38414151,86.539,86.505,11.56002543]
[1771311664515,0.38414151,86.539,86.506,0.56940261]
[1771311664918,0.38244797,86.547,86.511,0.56940261]
[1771311665705,0.38161575,86.539,86.511,0.56940261]
[1771311666310,0.38020145,86.537,86.511,0.56940261]
[1771311667400,11.55588425,86.536,86.511,0.56940261]
[1771311668501,11.93330565,86.536,86.511,0.56940261]
[1771311670225,0.37470484,86.535,86.511,0.56940261]
[1771311671513,3.63875827,86.53,86.511,0.56940261]
[1771311671814,0.37336991,86.529,86.506,1.6]
[1771311672015,0.37205032,86.528,86.507,1.6]
[1771311672324,0.37205032,86.528,86.502,11.56038042]
[1771311672929,3.26538836,86.53,86.502,11.56038042]
[1771311672930,3.26538836,86.53,86.503,0.56940261]
[1771311673221,0.37074589,86.529,86.503,0.56940261]
[1771311673404,0.37074589,86.529,86.504,0.56940261]
[1771311674129,0.37074589,86.529,86.506,0.56789034]
[1771311677804,0.37074589,86.529,86.507,0.56789034]
[1771311678024,0.36322797,86.535,86.509,0.56789034]
[1771311678213,3.63355496,86.54,86.51,0.56789034]
[1771311678413,0.36322797,86.549,86.51,0.56789034]
[1771311678613,0.36322797,86.549,86.511,0.56789034]
[1771311680606,0.36083559,86.547,86.513,0.56789034]
[1771311681314,3.27032699,86.54,86.513,0.56789034]
[1771311683609,3.27032699,86.54,86.515,0.56789034]
[1771311685913,3.27032699,86.54,86.517,0.56789034]
[1771311686113,0.35965997,86.543,86.517,0.56789034]
[1771311687119,11.55308062,86.557,86.521,0.56789034]
[1771311687311,0.35288444,86.549,86.521,0.56789034]
[1771311687510,11.55308062,86.557,86.521,0.56789034]
[1771311687511,0.35288444,86.539,86.521,0.56789034]
[1771311688233,3.27032699,86.55,86.521,0.56789034]
[1771311688234,0.35180015,86.549,86.521,0.56789034]
[1771311689726,0.35072831,86.539,86.515,1.6]
[1771311690121,0.35072831,86.539,86.516,0.56789034]
[1771311690323,0.34966878,86.538,86.516,0.56789034]
[1771311691442,0.34862142,86.529,86.515,1.6]
[1771311691627,0.34862142,86.529,86.501,0.56789034]
[1771311691819,0.34862142,86.519,86.501,0.56789034]
[1771311692023,0.34758609,86.524,86.501,0.56789034]
[1771311692217,0.34758609,86.519,86.501,0.56789034]
[1771311694236,0.34758609,86.519,86.5,0.2]
[1771311697328,0.34258511,86.519,86.5,0.2]
[1771311697642,0.34258511,86.509,86.49,0.2]
[1771311698034,0.34258511,86.509,86.491,0.56789034]
[1771311698344,0.14161911,86.518,86.491,0.56789034]
[1771311699449,0.14161911,86.518,86.491,11.56186265]
[1771311699646,0.14161911,86.518,86.492,0.56789034]
[1771311701930,0.14161911,86.518,86.49,0.2]
[1771311702234,0.13786482,86.499,86.48,0.1]
[1771311702936,0.13794039,86.509,86.48,0.66789034]
[1771311703141,0.03794039,86.499,86.47,0.1]
[1771311703345,0.03794039,86.499,86.47,0.66789034]
[1771311703727,0.03794039,86.508,86.472,0.56789034]
[1771311707553,3.27032699,86.5,86.472,0.56789034]
[1771311707738,0.03830546,86.501,86.474,0.54404487]
[1771311707947,0.03830546,86.508,86.474,0.54404487]
[1771311709153,0.03785119,86.499,86.474,0.54404487]
[1771311710256,0.03681964,86.493,86.474,0.54404487]
[1771311710442,0.03681964,86.499,86.474,0.54404487]
[1771311711456,0.03681964,86.499,86.47,0.1]
[1771311711457,0.03631273,86.504,86.476,0.54404487]
[1771311711838,14.86741173,86.5,86.476,0.54404487]
[1771311712553,11.59708474,86.5,86.476,0.54404487]
[1771311712957,3.30663972,86.5,86.476,0.54404487]
[1771311713758,0.03531632,86.499,86.476,0.54404487]
[1771311714656,11.56082729,86.499,86.476,0.54404487]
[1771311715438,11.59516995,86.499,86.476,0.54404487]
[1771311716353,11.56082729,86.499,86.476,0.54404487]
[1771311716559,11.5946915,86.499,86.476,0.54404487]
[1771311717265,0.03339125,86.498,86.476,0.54404487]
[1771311718775,0.03292372,86.503,86.476,0.54404487]
[1771311719064,0.03246156,86.511,86.478,0.54404487]
[1771311719250,19.36,86.516,86.48,0.54404487]
[1771311719455,0.03246156,86.519,86.481,0.54404487]
[1771311719655,0.03246156,86.509,86.483,0.54404487]
[1771311720455,14.82839538,86.52,86.483,0.54404487]
[1771311720651,3.3023317,86.52,86.483,0.54404487]
[1771311720856,11.55739867,86.525,86.483,0.54404487]
[1771311721258,11.55739867,86.525,86.492,11.56176293]
[1771311721564,11.58895178,86.525,86.493,0.54404487]
[1771311722265,11.55739867,86.525,86.493,0.54404487]
[1771311722472,0.03110669,86.524,86.495,0.54404487]
[1771311722853,0.03110669,86.529,86.495,0.54404487]
[1771311724870,0.03110669,86.529,86.497,0.54404487]
[1771311725072,11.55548365,86.539,86.501,0.54404487]
[1771311727673,11.55548365,86.539,86.5,3.27032699]
[1771311727674,0.02895036,86.539,86.503,0.54404487]
[1771311729159,43.70937956,86.55,86.503,0.54404487]
[1771311729370,63.06937956,86.55,86.503,0.54404487]
[1771311729568,0.02812211,86.539,86.505,0.54404487]
[1771311731074,0.02812211,86.539,86.504,11.56015906]
[1771311731075,0.02812211,86.539,86.507,0.54404487]
[1771311731868,0.02812211,86.539,86.511,0.54404487]
[1771311734258,0.02812211,86.539,86.512,0.54404487]
[1771311742673,0.02812211,86.539,86.501,1.6]
[1771311742674,0.02812211,86.539,86.507,0.54404487]
[1771311744675,0.02812211,86.539,86.511,0.54404487]
[1771311751600,0.02812211,86.539,86.513,0.54404487]
[1771311755092,11.55481604,86.544,86.513,0.54404487]
[1771311760387,3.26943228,86.54,86.501,0.54404487]
[1771311762911,11.55548365,86.539,86.502,0.54404487]
[1771311775331,11.55575071,86.537,86.502,0.54404487]
[1771311778309,28.88368368,86.555,86.511,0.54404487]
[1771311778512,19.38,86.554,86.511,0.54404487]
[1771311778916,30.93348106,86.554,86.511,0.54404487]
[1771311779118,59.81718371,86.554,86.511,0.54404487]
[1771311779311,59.81718371,86.554,86.521,0.54404487]
[1771311781629,28.88370265,86.554,86.521,0.54404487]
[1771311781832,11.54987814,86.581,86.541,0.54404487]
[1771311782424,19.38,86.58,86.541,0.54404487]
[1771311782842,19.38,86.58,86.522,0.54404487]
[1771311783006,3.26943228,86.55,86.501,0.54404487]
[1771311783205,4.61729252,86.577,86.501,0.54404487]
[1771311783206,3.26943228,86.54,86.501,0.54404487]
[1771311783424,19.38,86.539,86.501,0.54404487]
[1771311783830,11.55281368,86.559,86.511,0.54404487]
[1771311784020,19.38,86.558,86.521,0.54404487]
[1771311784923,19.38,86.557,86.521,0.54404487]
[1771311786527,11.5532141,86.556,86.521,0.54404487]
[1771311786713,19.38,86.555,86.521,0.54404487]
[1771311787223,19.36,86.554,86.521,0.54404487]
[1771311787611,3.26943228,86.55,86.521,0.54404487]
[1771311789436,11.55414851,86.549,86.521,0.54404487]
[1771311790333,3.26943228,86.53,86.503,0.54404487]
[1771311790537,3.26943228,86.53,86.482,12.1071447]
[1771311790828,3.26943228,86.52,86.483,0.54404487]
[1771311791031,19.38,86.519,86.483,0.54404487]
[1771311791222,3.26943228,86.52,86.483,0.54404487]
[1771311791531,19.36,86.518,86.483,0.54404487]
[1771311791913,30.91815485,86.519,86.485,0.54404487]
[1771311792115,3.26943228,86.51,86.471,0.54404487]
[1771311793039,19.36,86.509,86.475,0.54404487]
[1771311793228,3.26943228,86.51,86.475,0.54404487]
[1771311793413,19.36,86.508,86.475,0.54404487]
[1771311793824,3.26943228,86.5,86.477,0.54404487]
[1771311795433,11.56082729,86.499,86.477,0.54404487]
[1771311798638,3.26943228,86.49,86.477,0.54404487]
[1771311798832,3.26943228,86.49,86.47,0.1]
[1771311798833,3.26943228,86.49,86.472,0.54415288]
[1771311799921,3.27373911,86.49,86.472,0.54415288]
[1771311800117,3.27373911,86.49,86.47,0.1]
[1771311800835,3.27373911,86.49,86.47,0.64415288]
[1771311801531,3.27373911,86.49,86.47,0.1]
[1771311802424,11.56216397,86.489,86.47,0.64415288]
[1771311804642,3.27373911,86.5,86.472,0.54415288]
[1771311806542,3.27373911,86.49,86.472,0.54415288]
[1771311811840,11.56143255,86.495,86.472,0.54415288]
[1771311812246,14.83450469,86.5,86.472,0.54415288]
[1771311813361,3.27373911,86.49,86.472,0.54415288]
[1771311813574,14.83450469,86.5,86.472,0.54415288]
[1771311817956,19.4,86.499,86.472,0.54415288]
[1771311819947,11.56096094,86.498,86.47,0.1]
[1771311820359,11.56096094,86.498,86.47,0.64415288]
[1771311821138,3.27373911,86.49,86.47,0.64415288]
[1771311821564,11.56096094,86.498,86.47,0.64415288]
[1771311823147,40.4633633,86.498,86.47,0.64415288]
[1771311824251,4.61729252,86.523,86.47,0.64415288]
[1771311824252,11.55748694,86.524,86.472,0.54404487]
[1771311824448,3.27373911,86.52,86.472,0.54404487]
[1771311825066,3.27373911,86.52,86.481,0.54404487]
[1771311825468,11.55815485,86.519,86.481,0.54404487]
[1771311825644,40.45354199,86.519,86.481,0.54404487]
[1771311832168,40.45354199,86.519,86.47,3.37373911]
[1771311832169,11.55815485,86.519,86.483,0.54404487]
[1771311833073,11.55815485,86.519,86.482,11.56309983]
[1771311833074,19.42,86.523,86.491,0.54404487]
[1771311833953,19.42,86.523,86.493,0.54404487]
[1771311835973,19.42,86.523,86.494,11.56149559]
[1771311836281,19.42,86.523,86.495,0.54404487]
[1771311836974,19.42,86.523,86.496,11.56122826]
[1771311837158,19.42,86.523,86.497,0.54404487]
[1771311837159,11.55775409,86.522,86.497,0.54404487]
[1771311838380,3.27373911,86.52,86.497,0.54404487]
[1771311838580,0.53237749,86.509,86.477,11.56370261]
[1771311839170,11.55962454,86.508,86.477,11.56370261]
[1771311839675,11.55907846,86.513,86.477,11.56370261]
[1771311839869,11.55907846,86.513,86.48,3.27373911]
[1771311840463,11.55907846,86.513,86.481,0.50928609]
[1771311840669,11.55788768,86.521,86.483,0.50928609]
[1771311840980,0.53237749,86.52,86.483,0.50928609]
[1771311841164,0.53237749,86.519,86.483,0.50928609]
[1771311842784,0.53237749,86.517,86.483,0.50928609]
[1771311842989,11.55619651,86.534,86.491,0.50928609]
[1771311843191,11.55619651,86.534,86.501,0.50928609]
[1771311843366,0.53237749,86.533,86.501,0.50928609]
[1771311845569,0.53237749,86.531,86.501,0.50928609]
[1771311847797,0.53237749,86.529,86.501,0.50928609]
[1771311849687,0.53237749,86.527,86.501,0.50928609]
[1771311850496,0.53237749,86.527,86.496,0.50928609]
[1771311850677,0.53237749,86.519,86.487,0.50928609]
[1771311850877,0.53237749,86.519,86.488,0.50928609]
[1771311851198,0.53237749,86.525,86.491,0.50928609]
[1771311851575,19.44,86.526,86.491,0.50928609]
[1771311851885,19.97237749,86.526,86.491,0.50928609]
[1771311852076,0.53237749,86.524,86.491,0.50928609]
[1771311854486,0.5423615,86.522,86.491,0.50928609]
[1771311854992,3.27373911,86.52,86.491,0.50928609]
[1771311855173,0.5423615,86.519,86.491,0.50928609]
[1771311855593,12.10064994,86.518,86.491,0.50928609]
[1771311858190,11.55735336,86.525,86.491,0.50928609]
[1771311858400,0.5423615,86.517,86.491,0.50928609]
[1771311859294,0.5423615,86.551,86.492,11.56176293]
[1771311859497,0.5423615,86.539,86.501,0.50402171]
[1771311860383,11.55561718,86.538,86.501,0.50402171]